{"text_format":"1","workbook":"xlsx","n_sheets":3,"sheets":["大学院以外","大学院","指定研修機関一覧"],"not_rendered":{"charts":0,"images":0,"macros":1,"external_links":0,"defined_names":4,"comments":0,"pivot_tables":0},"unopened":[],"bounds":{"document_bytes":16777216,"sheet_cells":100000,"rows_first":2000,"rows_last":500,"rows_between":2000,"halvings":0,"cell_chars":16384,"cell_head_chars":4096},"cells_cut":0,"cells_raw":0,"read":"whole","date_system":"1900"}

{"sheet":"大学院以外","index":0,"n_rows":19,"n_cols":27,"rows_kept":19,"cut":false,"hidden":true,"merged":[]}
["特定行為区分別定員一覧（その他指定機関）",null,null,null,null,null,null,null,null,null,null,null,null,null,null,null,null,null,null,null,null,null,null,null,null,"2016/04/13　現在"]
["指定研修機関","施設名","都道府県","指定日","年間募集回数","共通科目","呼吸器（気道確保に係るもの）","呼吸器（人工呼吸療法に係るもの）","呼吸器（長期呼吸療法に係るもの）","循環器","心嚢ドレーン管理","胸腔ドレーン管理","腹腔ドレーン管理","ろう孔管理","栄養に係るカテーテル管理（中心静脈カテーテル管理）","栄養に係るカテーテル管理（末梢留置型中心静脈注射用カテーテル管理）","創傷管理","創部ドレーン管理","動脈血液ガス\n分析","透析管理","栄養及び水分管理に係る薬剤投与","感染に係る薬剤投与","血糖コントロールに係る薬剤投与","術後疼痛管理","循環動態に係る薬剤投与","精神及び神経症状に係る薬剤投与","皮膚損傷に係る薬剤投与"]
["学校法人岩手医科大学岩手医科大学附属病院高度看護研修センター(岩手)","岩手医科大学附属病院高度看護研修センター\n","岩手","平成27年10月",1,3,null,null,null,null,null,null,null,null,null,null,3]
["公益財団法人星総合病院","公益財団法人星総合病院","福島","平成28年2月",1,3,null,null,null,null,null,null,null,null,null,null,3]
["学校法人自治医科大学","自治医科大学","栃木","平成27年10月",2,30,5,5,5,5,null,5,5,5,5,5,5,5,5,5,5,5,5,null,5,5,5]
["医療法人社団愛友会","医療法人社団愛友会上尾中央総合病院","埼玉","平成27年10月",1,20,20,20,null,20,20,null,null,null,null,null,null,20,20,null,null,null,null,null,20]
["学校法人埼玉医科大学埼玉医科大学総合医療センター","学校法人埼玉医科大学埼玉医科大学総合医療センター","埼玉","平成27年10月",2,6,6,6,6,null,null,null,null,6,null,null,null,null,null,3]
["社会医療法人社団さつき会袖ヶ浦さつき台病院","社会医療法人社団さつき会袖ヶ浦さつき台病院","千葉","平成27年10月",1,3,null,null,null,null,null,null,null,null,null,null,null,null,null,null,null,null,null,null,null,3]
["一般社団法人日本慢性期医療協会","日本慢性期医療協会東京研修センター","東京","平成27年10月",1,100,null,15,60,null,null,null,null,null,null,null,15,null,null,null,60,70,60,null,null,45]
["公益社団法人地域医療振興協会JADECOM-NDC研修センター","公益社団法人地域医療振興協会東京ベイ・浦安市川医療センター","千葉","平成27年10月",1,10,10,10,10,10,10,10,10,10,10,10,10,10,10,10,10,10,10,10,10,10,10]
["公益社団法人日本看護協会","公益社団法人日本看護協会","東京","平成27年10月",1,100,15,15,15,null,null,null,null,15,15,30,15,15,15,null,15,15]
["独立行政法人地域医療機能推進機構東京メディカルセンター","独立行政法人地域医療機能推進機構東京メディカルセンター","東京","平成28年2月",1,4,null,null,null,null,null,null,null,null,null,null,null,null,null,null,2,null,2]
["社会医療法人愛仁会","社会医療法人愛仁会","愛知","平成28年2月",1,3,3,3,null,null,null,null,null,null,null,null,3,null,3,3,3,null,3,null,3,null,3]
["国立大学法人滋賀医科大学","国立大学法人滋賀医科大学","滋賀","平成28年2月",1,5,"51)","51)","51)"]
["医療法人社団洛和会洛和会音羽病院","医療法人社団洛和会洛和会音羽病院","京都","平成27年10月",1,10,10,10,null,null,null,null,null,null,null,null,null,null,null,null,null,null,10,10,10]
["公立大学法人奈良県立医科大学","公立大学法人奈良県立医科大学","奈良","平成27年10月",1,5,5,5,null,null,null,null,null,null,5,null,null,null,5,null,5,null,null,5,5]
["小計（人）",null,null,null,null,{"$f":"SUM(F3:F16)","v":302},{"$f":"SUM(G3:G16)","v":74},{"$f":"SUM(H3:H16)","v":89},96,35,30,15,15,36,35,45,54,50,58,21,100,100,90,25,53,63,18]
["年度計（人）",null,null,null,null,{"$f":"SUM(F3:F16)+F5+F7","v":338},{"$f":"SUM(G3:G16)+G5+G7","v":85},{"$f":"SUM(H3:H16)+H5+H7","v":100},107,40,30,20,20,47,40,50,59,55,63,29,105,105,95,25,58,68,23]
["1) 3つの区分すべてを履修することが条件"]

{"sheet":"大学院","index":1,"n_rows":10,"n_cols":27,"rows_kept":10,"cut":false,"hidden":true,"merged":[]}
["特定行為区分別定員一覧（大学院）"]
["指定研修機関","施設名","都道府県","指定日","複数回募集","共通科目","呼吸器（気道確保に係るもの）","呼吸器（人工呼吸療法に係るもの）","呼吸器（長期呼吸療法に係るもの）","循環器","心嚢ドレーン管理","胸腔ドレーン管理","腹腔ドレーン管理","ろう孔管理","栄養に係るカテーテル管理（中心静脈カテーテル管理）","栄養に係るカテーテル管理（末梢留置型中心静脈注射用カテーテル管理）","創傷管理","創部ドレーン管理","動脈血液ガス\n分析","透析管理","栄養及び水分管理に係る薬剤投与","感染に係る薬剤投与","血糖コントロールに係る薬剤投与","術後疼痛管理","循環動態に係る薬剤投与","精神及び神経症状に係る薬剤投与","皮膚損傷に係る薬剤投与"]
["学校法人東日本学園北海道医療大学大学院看護福祉学研究科看護学専攻","北海道医療大学","北海道","平成27年10月",1,5,5,5,null,null,null,null,null,5,5,5,5,null,5,null,5,5,5,null,5,5,5]
["学校法人東北文化学園大学東北文化学園大学大学院健康社会システム研究科健康福祉専攻","学校法人東北文化学園大学東北文化学園大学大学院","宮城","平成28年2月",1,8,8,8,8,8,8,8,8,8,8,8,8,8,8,8,8,8,8,8,8,8,8]
["学校法人青葉学園東京医療保健大学大学院看護学研究科","東京医療保健大学","東京","平成27年10月",1,20,20,20,20,20,20,20,20,20,20,20,20,20,20,20,20,20,20,20,20,20,20]
["学校法人国際医療福祉大学国際医療福祉大学大学院医療福祉学研究科保健医療学専攻","国際医療福祉大学病院","東京","平成27年10月",1,20,20,20,20,20,20,20,20,20,20,20,20,20,20,20,20,20,20,20,20,20,20]
["学校法人愛知医科大学大学院看護学研究科看護学専攻(愛知)","学校法人愛知医科大学","愛知","平成28年2月",1,6,6,6,6,6,6,6,6,6,6,6,6,6,6,6,6,6,6,6,6,6,6]
["学校法人藤田学園藤田保健衛生大学大学院保健学研究科保健学専攻","藤田保健衛生大学大学院保健学研究科保健学専攻","愛知","平成28年2月",1,15,10,10,10,10,10,10,10,10,10,10,10,10,10,10,10,10,10,10,10,10,10]
["公立大学法人大分県立看護科学大学大学院看護学研究科看護学専攻","公立大学法人大分県立看護科学大学大学院看護学研究科看護学専攻","大分","平成27年10月",1,10,10,10,10,10,10,10,10,10,10,10,10,10,10,10,10,10,10,10,10,10,10]
["小計(人)",null,null,null,null,{"$f":"SUM(F3:F9)","v":84},{"$f":"SUM(G3:G9)","v":79},{"$f":"SUM(H3:H9)","v":79},74,74,74,74,74,79,79,79,79,74,79,74,79,79,79,74,79,79,79]

{"sheet":"指定研修機関一覧","index":2,"n_rows":377,"n_cols":33,"rows_kept":377,"cut":false,"hidden":false,"merged":[[2,5,2,25],[2,26,3,26],[2,27,2,32],[1,0,1,3],[2,0,3,0],[2,1,3,1],[2,2,3,2],[2,3,3,3],[2,4,3,4]]}
[]
["特定行為に係る看護師の研修制度　指定研修機関一覧\n（令和5年8月現在、指定年順）",null,null,null,"※休止中の区分・領域別パッケージ研修も○となっています。"]
["No","都道府県","指定年","指定研修機関名","区分数","区分別研修",null,null,null,null,null,null,null,null,null,null,null,null,null,null,null,null,null,null,null,null,"領域別パッケージ研修数","領域別パッケージ研修"]
[null,null,null,null,null,"呼吸器（気道確保に係るもの）","呼吸器（人工呼吸療法に係るもの）","呼吸器（長期呼吸療法に係るもの）","循環器","心嚢ドレーン管理","胸腔ドレーン管理","腹腔ドレーン管理","ろう孔管理","栄養に係るカテーテル管理（中心静脈カテーテル管理）","栄養に係るカテーテル管理（末梢留置型中心静脈注射用カテーテル管理）","創傷管理","創部ドレーン管理","動脈血液ガス\n分析","透析管理","栄養及び水分管理に係る薬剤投与","感染に係る薬剤投与","血糖コントロールに係る薬剤投与","術後疼痛管理","循環動態に係る薬剤投与","精神及び神経症状に係る薬剤投与","皮膚損傷に係る薬剤投与",null,"在宅","外科術後","麻酔","救急","外科基本","集中治療領域"]
[1,"北海道",2015,"学校法人東日本学園北海道医療大学大学院看護福祉学研究科看護学専攻",13,"○",null,"○",null,null,null,null,"○","○","○","○",null,"○",null,"○","○","○",null,"○","○","○",0]
[2,"岩手県",2015,"学校法人岩手医科大学　岩手医科大学附属病院高度看護研修センター",14,"○","○","○",null,null,"○","○","○","○","○","○","○","○",null,"○",null,null,"○","○",null,null,2,"○","○"]
[3,"栃木県",2015,"学校法人自治医科大学　自治医科大学",20,"○","○","○","○",null,"○","○","○","○","○","○","○","○","○","○","○","○","○","○","○","○",5,"○","○","○",null,"○","○"]
[4,"埼玉県",2015,"医療法人社団愛友会上尾中央総合病院",16,"○","○","○","○","○",null,null,"○","○",null,"○","○","○",null,"○","○","○","○","○","○",null,0]
[5,"東京都",2015,"一般社団法人日本慢性期医療協会",9,null,"○","○",null,null,null,null,null,"○","○","○",null,null,null,"○","○","○",null,null,"○",null,0]
[6,"東京都",2015,"学校法人青葉学園東京医療保健大学大学院看護学研究科看護学専攻",21,"○","○","○","○","○","○","○","○","○","○","○","○","○","○","○","○","○","○","○","○","○",0]
[7,"東京都",2015,"学校法人国際医療福祉大学国際医療福祉大学大学院医療福祉学研究科保健医療学専攻",21,"○","○","○","○","○","○","○","○","○","○","○","○","○","○","○","○","○","○","○","○","○",0]
[8,"東京都",2015,"公益社団法人地域医療振興協会　NP・NDC研修センター",21,"○","○","○","○","○","○","○","○","○","○","○","○","○","○","○","○","○","○","○","○","○",0]
[9,"東京都",2015,"公益社団法人日本看護協会",14,"○","○","○",null,null,null,null,"○","○","○","○","○","○",null,"○","○","○",null,"○","○",null,1,"○"]
[10,"愛知県",2015,"学校法人愛知医科大学大学院看護学研究科看護学専攻",21,"○","○","○","○","○","○","○","○","○","○","○","○","○","○","○","○","○","○","○","○","○",0]
[11,"愛知県",2015,"学校法人藤田学園藤田保健衛生大学大学院保健学研究科保健学専攻",21,"○","○","○","○","○","○","○","○","○","○","○","○","○","○","○","○","○","○","○","○","○",1,"○"]
[12,"京都府",2015,"医療法人社団洛和会洛和会音羽病院",8,"○","○","○",null,null,null,null,null,null,null,"○",null,"○",null,"○",null,"○",null,"○",null,null,0]
[13,"奈良県",2015,"公立大学法人奈良県立医科大学",14,"○","○","○","○",null,null,null,"○","○","○","○",null,"○",null,"○",null,"○","○","○","○",null,0]
[14,"大分県",2015,"公立大学法人大分県立看護科学大学大学院看護学研究科看護学専攻",21,"○","○","○","○","○","○","○","○","○","○","○","○","○","○","○","○","○","○","○","○","○",0]
[15,"宮城県",2016,"学校法人東北文化学園大学東北文化学園大学大学院健康社会システム研究科健康福祉専攻",21,"○","○","○","○","○","○","○","○","○","○","○","○","○","○","○","○","○","○","○","○","○",0]
[16,"福島県",2016,"公益財団法人星総合病院",5,null,null,null,null,null,null,null,"○",null,null,"○",null,null,null,"○","○",null,null,null,"○",null,0]
[17,"埼玉県",2016,"学校法人埼玉医科大学埼玉医科大学総合医療センター",7,"○","○","○",null,null,null,null,"○",null,null,null,null,null,"○","○",null,"○",null,null,null,null,0]
[18,"千葉県",2016,"社会医療法人社団さつき会袖ヶ浦さつき台病院看護師特定行為研修センター",3,null,null,null,null,null,null,null,null,null,null,null,null,null,null,"○",null,"○",null,null,"○",null,0]
[19,"東京都",2016,"独立行政法人地域医療機能推進機構東京新宿メディカルセンター",2,null,null,null,null,null,null,null,null,null,null,null,null,null,null,"○",null,"○",null,null,null,null,0]
[20,"滋賀県",2016,"国立大学法人　滋賀医科大学",21,"○","○","○","○","○","○","○","○","○","○","○","○","○","○","○","○","○","○","○","○","○",6,"○","○","○","○","○","○"]
[21,"大阪府",2016,"社会医療法人愛仁会",13,"○","○","○",null,null,null,null,"○",null,null,"○",null,"○","○","○","○","○","○","○","○",null,3,"○",null,"○","○"]
[22,"茨城県",2016,"国立大学法人筑波大学　筑波大学付属病院",20,"○","○","○","○",null,"○","○","○","○","○","○","○","○","○","○","○","○","○","○","○","○",6,"○","○","○","○","○","○"]
[23,"群馬県",2016,"公益財団法人脳血管研究所　美原記念病院",5,null,null,"○",null,null,null,null,"○",null,"○","○",null,null,null,"○",null,null,null,null,null,null,1,"○"]
[24,"石川県",2016,"社会医療法人財団董仙会　恵寿総合病院",9,"○","○","○",null,null,null,null,"○",null,null,"○",null,"○",null,"○",null,"○",null,"○",null,null,1,"○"]
[25,"福井県",2016,"学校法人　新田塚学園　福井医療大学",12,"○","○","○",null,null,null,null,"○",null,null,"○",null,"○",null,"○","○","○","○","○","○",null,2,"○",null,"○"]
[26,"高知県",2016,"社会医療法人近森会　近森病院",17,"○","○","○","○",null,"○","○",null,"○","○","○","○","○",null,"○","○","○","○","○","○",null,5,null,"○","○","○","○","○"]
[27,"鹿児島県",2016,"国立大学法人鹿児島大学　鹿児島大学病院",16,"○","○","○",null,null,"○","○","○","○","○","○","○","○",null,"○","○","○","○","○",null,null,3,"○","○","○"]
[28,"山形県",2017,"国立大学法人山形大学　山形大学大学院医学系研究科看護学専攻",21,"○","○","○","○","○","○","○","○","○","○","○","○","○","○","○","○","○","○","○","○","○",0]
[29,"福島県",2017,"公立大学法人福島県立医科大学",19,"○","○","○","○",null,"○","○","○","○",null,"○","○","○","○","○","○","○","○","○","○","○",2,"○",null,"○"]
[30,"東京都",2017,"医療法人社団　明芳会",11,"○","○","○",null,null,null,null,null,"○","○","○",null,"○",null,"○","○","○",null,"○",null,null,0]
[31,"東京都",2017,"社会医療法人河北医療財団　河北総合病院",3,null,null,null,null,null,null,"○",null,null,null,null,"○",null,null,null,null,"○",null,null,null,null,0]
[32,"石川県",2017,"公立能登総合病院",3,null,null,null,null,null,null,null,null,null,null,"○",null,null,null,"○",null,"○",null,null,null,null,0]
[33,"大阪府",2017,"公立大学法人大阪　大阪公立大学",7,"○","○","○",null,null,null,null,null,"○",null,null,null,"○",null,"○",null,"○",null,null,null,null,0]
[34,"大阪府",2017,"社会医療法人きつこう会　多根総合病院",7,null,null,null,null,null,null,"○",null,"○","○","○","○","○",null,"○",null,null,null,null,null,null,0]
[35,"兵庫県",2017,"兵庫医科大学　臨床教育統括センター",15,"○","○","○","○",null,null,null,"○","○",null,"○","○","○",null,"○","○","○","○","○","○",null,2,null,null,"○",null,null,"○"]
[36,"和歌山県",2017,"公立大学法人和歌山県立医科大学",9,"○",null,"○",null,null,null,null,"○","○","○","○",null,"○",null,"○",null,"○",null,null,null,null,1,"○"]
[37,"岡山県",2017,"学校法人　川崎学園",15,"○","○","○",null,null,"○","○","○","○","○","○","○","○",null,"○","○",null,"○","○",null,null,1,null,null,"○"]
[38,"香川県",2017,"独立行政法人国立病院機構　四国こどもとおとなの医療センター",5,"○","○","○",null,null,null,null,"○",null,null,"○",null,null,null,"○",null,"○",null,null,null,null,1,"○"]
[39,"東京都",2017,"独立行政法人地域医療機能推進機構",18,"○","○","○",null,null,"○","○","○","○","○","○","○","○","○","○","○","○","○","○",null,"○",2,"○",null,"○"]
[40,"北海道",2017,"社会医療法人恵和会　西岡病院",1,null,null,null,null,null,null,null,null,null,null,null,null,null,null,"○",null,null,null,null,null,null,0]
[41,"東京都",2017,"医療法人社団永生会　",2,null,null,"○",null,null,null,null,null,null,null,"○",null,null,null,null,null,null,null,null,null,null,0]
[42,"東京都",2017,"社会福祉法人恩賜財団済生会支部東京都済生会　東京都済生会中央病院　",10,"○","○",null,"○",null,null,null,null,null,"○",null,null,"○",null,"○",null,"○","○","○","○",null,1,null,null,"○"]
[43,"東京都",2017,"セコム医療システム株式会社",14,"○","○","○",null,null,null,null,"○","○","○","○","○","○",null,"○","○","○","○","○",null,null,3,"○",null,"○",null,"○"]
[44,"神奈川県",2017,"医療法人五星会　菊名記念病院",2,null,null,null,null,null,null,null,null,null,null,null,null,null,null,"○",null,"○",null,null,null,null,0]
[45,"神奈川県",2017,"医療法人横浜未来ヘルスケアシステム 戸塚共立第1病院　",18,"○","○","○",null,null,"○","○","○","○","○",null,"○","○","○","○","○","○","○","○","○","○",0]
[46,"神奈川県",2017,"社会福祉法人恩賜財団済生会支部神奈川県済生会　横浜市東部病院",11,"○","○","○",null,null,null,"○",null,"○",null,"○","○","○",null,"○",null,"○",null,null,"○",null,0]
[47,"石川県",2017,"医療法人社団和楽仁　芳珠記念病院",3,null,null,"○",null,null,null,null,null,null,null,null,null,null,null,"○",null,"○",null,null,null,null,0]
[48,"石川県",2017,"公立松任石川中央病院",6,null,null,null,null,null,null,"○",null,"○","○",null,null,null,"○","○","○",null,null,null,null,null,0]
[49,"石川県",2017,"国民健康保険　小松市民病院",3,null,null,null,null,null,null,null,null,null,null,"○",null,null,null,"○",null,"○",null,null,null,null,0]
[50,"福岡県",2017,"社会医療法人　弘恵会　ヨコクラ病院",5,null,null,"○",null,null,null,null,"○",null,null,"○",null,"○",null,"○",null,null,null,null,null,null,1,"○"]
[51,"福岡県",2017,"社会医療法人雪の聖母会　聖マリア病院",7,"○","○","○",null,null,null,null,null,null,null,null,null,"○",null,"○",null,null,"○","○",null,null,1,null,null,"○"]
[52,"佐賀県",2017,"社会医療法人祐愛会　織田病院",5,null,null,"○",null,null,null,null,"○",null,null,"○",null,null,null,"○",null,null,"○",null,null,null,1,"○"]
[53,"北海道",2018,"旭川赤十字病院",2,null,null,null,null,null,null,null,null,null,null,"○",null,null,null,null,null,"○",null,null,null,null,0]
[54,"北海道",2018,"社会福祉法人恩賜財団済生会支部北海道済生会小樽病院",9,"○","○",null,null,null,null,null,"○",null,null,"○",null,"○",null,"○",null,"○",null,"○","○",null,0]
[55,"秋田県",2018,"社会医療法人青嵐会　本荘第一病院",4,null,null,null,null,null,null,null,null,"○","○",null,null,"○",null,"○",null,null,null,null,null,null,0]
[56,"東京都",2018,"医療法人財団慈生会　野村病院",1,null,null,null,null,null,null,null,null,null,null,null,null,null,null,"○",null,null,null,null,null,null,0]
[57,"東京都",2018,"日本赤十字社",11,"○","○","○",null,null,null,null,null,null,null,"○",null,"○",null,"○","○","○","○","○","○",null,2,null,null,"○","○"]
[58,"東京都",2018,"武蔵野赤十字病院",10,"○","○","○",null,null,null,null,null,null,null,"○",null,"○",null,"○","○","○","○","○",null,null,1,null,null,"○"]
[59,"長野県",2018,"学校法人佐久学園　佐久大学大学院看護学研究科看護学専攻",10,null,"○","○",null,null,null,null,"○",null,null,"○",null,"○",null,"○","○","○",null,"○","○",null,1]
[60,"大阪府",2018,"公益社団法人　大阪府看護協会",14,"○","○","○",null,null,null,null,"○","○",null,"○","○","○",null,"○","○","○","○","○","○",null,3,"○",null,null,"○","○"]
[61,"兵庫県",2018,"姫路赤十字病院",10,"○","○","○",null,null,null,null,null,null,null,"○",null,"○",null,"○","○","○","○","○",null,null,1,null,null,"○"]
[62,"鳥取県",2018,"国立大学法人　鳥取大学医学部附属病院",7,"○","○",null,null,null,null,null,null,null,null,null,null,"○",null,"○",null,"○","○","○",null,null,0]
[63,"山口県",2018,"綜合病院　山口赤十字病院",4,null,null,"○",null,null,null,null,"○",null,null,"○",null,null,null,"○",null,null,null,null,null,null,1,"○"]
[64,"香川県",2018,"高松赤十字病院",4,null,null,"○",null,null,null,null,null,null,null,"○",null,null,null,"○",null,"○",null,null,null,null,0]
[65,"福岡県",2018,"社会医療法人共愛会　戸畑共立病院",11,"○","○","○",null,null,null,null,"○","○",null,"○",null,"○","○","○",null,null,"○","○",null,null,2,"○",null,"○"]
[66,"沖縄県",2018,"国立大学法人琉球大学　琉球大学病院",18,"○","○","○","○",null,"○","○","○","○","○","○","○","○",null,"○","○","○","○","○","○",null,2,null,null,null,"○","○"]
[67,"沖縄県",2018,"社会医療法人仁愛会　浦添総合病院",7,"○","○","○",null,null,null,null,"○",null,null,null,null,"○",null,"○",null,null,null,null,"○",null,1,null,null,null,"○"]
[68,"富山県",2018,"医療法人社団藤聖会　富山西総合病院",3,null,null,null,null,null,null,null,null,null,null,null,null,null,null,"○",null,"○",null,"○",null,null,0]
[69,"北海道",2018,"医療法人社団　エス・エス・ジェイ　札幌整形循環器病院",3,null,null,null,null,null,null,null,null,null,null,null,null,null,null,"○",null,null,"○","○",null,null,0]
[70,"秋田県",2018,"秋田赤十字病院",4,null,null,"○",null,null,null,null,"○",null,null,"○",null,null,null,"○",null,null,null,null,null,null,1,"○"]
[71,"茨城県",2018,"社会福祉法人恩賜財団済生会支部　茨城県済生会水戸済生会総合病院",20,"○","○","○","○","○","○","○","○","○","○","○","○","○","○","○","○","○","○","○","○",null,6,"○","○","○","○","○","○"]
[72,"福井県",2018,"市立敦賀病院",5,null,null,"○",null,null,null,null,"○",null,"○","○",null,null,null,"○",null,null,null,null,null,null,1,"○"]
[73,"長野県",2018,"伊那中央病院",10,"○","○","○",null,null,null,null,null,"○",null,"○",null,"○",null,"○",null,"○",null,null,"○","○",0]
[74,"岐阜県",2018,"岐阜県厚生農業協同組合連合会　岐阜・西濃医療センター　揖斐厚生病院",1,null,null,null,null,null,null,null,null,null,null,null,null,"○",null,null,null,null,null,null,null,null,0]
[75,"岐阜県",2018,"岐阜県厚生農業協同組合連合会　岐阜・西濃医療センター　岐北厚生病院",1,null,null,null,null,null,null,null,null,"○",null,null,null,null,null,null,null,null,null,null,null,null,0]
[76,"岐阜県",2018,"岐阜県厚生農業協同組合連合会　飛騨医療センター　久美愛厚生病院",2,null,null,null,null,null,null,null,null,null,null,"○",null,null,null,"○",null,null,null,null,null,null,0]
[77,"岐阜県",2018,"岐阜県厚生農業協同組合連合会　中濃厚生病院",5,null,null,null,null,null,null,null,null,"○",null,null,null,"○","○","○",null,"○",null,null,null,null,0]
[78,"岐阜県",2018,"岐阜県厚生農業協同組合連合会　東濃中部医療センター　東濃厚生病院",5,null,"○",null,null,null,null,null,null,null,null,null,null,"○",null,"○","○",null,null,null,null,"○"]
[79,"岐阜県",2018,"岐阜県厚生農業協同組合連合会　岐阜・西濃医療センター　西美濃厚生病院",1,null,null,null,null,null,null,null,"○",null,null,null,null,null,null,null,null,null,null,null,null,null,0]
[80,"静岡県",2018,"学校法人　聖隷学園　聖隷クリストファー大学",8,null,null,"○",null,null,null,null,"○",null,null,"○",null,null,null,"○","○","○",null,"○","○",null,1,"○"]
[81,"静岡県",2018,"公益社団法人有隣厚生会富士病院",15,"○","○","○",null,null,null,null,"○","○","○","○","○","○","○","○","○","○","○","○",null,null,3,"○",null,"○",null,"○"]
[82,"兵庫県",2018,"医療法人社団慈恵会新須磨病院",6,null,null,null,null,null,null,null,null,"○",null,"○",null,"○",null,"○",null,"○",null,null,"、○",null,0]
[83,"福岡県",2018,"福岡赤十字病院",11,"○","○","○",null,null,null,null,null,null,null,"○",null,"○",null,"○","○","○","○","○","○",null,2,null,null,"○","○"]
[84,"佐賀県",2018,"社会医療法人謙仁会　山元記念病院",5,null,null,"○",null,null,null,null,"○","○",null,"○",null,null,null,"○",null,null,null,null,null,null,1,"○"]
[85,"大分県",2018,"社会医療法人敬和会　大分岡病院",14,"○","○","○",null,null,"○","○","○","○","○","○","○","○",null,"○",null,null,"○","○",null,null,3,"○","○","○"]
[86,"沖縄県",2018,"医療法人沖縄徳洲会　南部徳洲会病院",7,null,null,"○",null,null,null,null,"○","○",null,"○",null,"○",null,"○",null,"○",null,null,null,null,1,"○"]
[87,"北海道",2019,"清水赤十字病院",6,null,null,"○",null,null,null,null,"○",null,null,"○",null,null,null,"○",null,"○","○",null,null,null,1,"○"]
[88,"宮城県",2019,"石巻赤十字病院",7,"○","○",null,null,null,null,null,null,null,null,"○",null,"○",null,"○","○","○",null,null,null,null,0]
[89,"宮城県",2019,"医療法人　浄仁会　大泉記念病院",4,null,null,"○",null,null,null,null,"○",null,null,"○",null,null,null,"○",null,null,null,null,null,null,1,"○"]
[90,"東京都",2019,"公益財団法人日産厚生会玉川病院",6,null,null,null,null,null,"○",null,null,null,"○","○","○",null,null,"○","○",null,null,null,null,null,0]
[91,"東京都",2019,"社会医療法人社団正志会　花と森の東京病院",9,null,null,"○",null,null,null,"○",null,"○",null,"○","○","○",null,"○","○",null,"○",null,null,null,1,null,null,null,null,"○"]
[92,"神奈川県",2019,"独立行政法人労働者健康安全機構",16,"○","○","○","○",null,null,null,null,"○","○","○","○","○","○","○","○","○","○","○","○",null,3,null,null,"○",null,"○","○"]
[93,"神奈川県",2019,"横浜市立みなと赤十字病院",8,"○","○","○",null,null,null,null,null,null,null,"○",null,"○",null,"○",null,null,"○","○",null,null,2,null,null,"○",null,null,"○"]
[94,"富山県",2019,"富山県立中央病院",12,"○","○","○","○",null,null,"○",null,"○",null,"○","○","○",null,"○",null,null,null,"○","○",null,2,null,null,null,"○",null,"○"]
[95,"富山県",2019,"南砺市民病院",3,null,null,null,null,null,null,null,null,null,null,"○",null,null,null,"○",null,"○",null,null,null,null,0]
[96,"長野県",2019,"社会医療法人財団慈泉会　相澤病院",14,"○","○","○",null,null,"○","○",null,"○","○","○","○","○",null,"○",null,"○","○","○",null,null,0]
[97,"岐阜県",2019,"県北西部地域医療センター　国保白鳥病院",4,null,null,"○",null,null,null,null,"○",null,null,"○",null,null,null,"○",null,null,null,null,null,null,1,"○"]
[98,"静岡県",2019,"国立大学法人浜松医科大学　浜松医科大学医学部附属病院",12,"○","○","○","○",null,null,null,null,"○",null,null,null,"○",null,"○","○","○","○","○","○",null,2,null,null,"○","○"]
[99,"愛知県",2019,"医療法人名古屋澄心会　名古屋ハートセンター",8,null,"○",null,null,null,null,null,null,"○","○",null,null,null,"○","○","○","○",null,"○",null,null,0]
[100,"愛知県",2019,"学校法人藤田学園　藤田医科大学病院",17,"○","○","○",null,null,"○","○",null,"○","○","○","○","○","○","○","○","○","○","○","○",null,0]
[101,"愛知県",2019,"国立大学法人東海国立大学機構　名古屋大学医学部附属病院",18,"○","○","○","○",null,"○","○","○","○","○","○","○","○",null,"○","○","○","○","○","○",null,0]
[102,"大阪府",2019,"医療法人藤井会　石切生喜病院",13,"○","○",null,"○",null,null,null,null,"○",null,"○","○","○","○","○","○",null,"○","○","○",null,2,null,null,null,"○","○"]
[103,"大阪府",2019,"社会福祉法人恩賜財団済生会支部大阪府済生会泉南医療福祉センター",2,null,null,null,null,null,null,null,null,null,null,null,null,null,null,"○","○",null,null,null,null,null,0]
[104,"和歌山県",2019,"日本赤十字社　和歌山医療センター",9,"○","○",null,null,null,null,null,null,null,null,null,null,"○",null,"○","○","○","○","○","○",null,2,null,null,"○","○"]
[105,"鳥取県",2019,"鳥取赤十字病院",10,"○","○","○",null,null,null,null,null,null,null,"○",null,"○",null,"○","○","○","○","○",null,null,1,null,null,"○"]
[106,"島根県",2019,"松江市立病院",7,"○","○",null,null,null,null,null,null,null,null,null,null,"○",null,"○",null,"○","○","○",null,null,1,null,null,"○"]
[107,"島根県",2019,"松江赤十字病院",8,"○","○","○",null,null,null,null,null,null,null,"○",null,"○",null,"○","○","○",null,null,null,null,0]
[108,"広島県",2019,"国立大学法人　広島大学病院",10,"○","○",null,null,null,null,null,null,null,"○","○",null,"○",null,"○","○","○","○","○",null,null,0]
[109,"山口県",2019,"医療法人茜会　よしみず病院附属看護学院",2,null,null,"○",null,null,null,null,null,null,null,"○",null,null,null,null,null,null,null,null,null,null,0]
[110,"佐賀県",2019,"地方独立行政法人　佐賀県医療センター好生館",7,"○","○",null,null,null,null,null,null,null,null,null,null,"○",null,"○",null,null,"○","○","○",null,2,null,null,"○","○"]
[111,"熊本県",2019,"独立行政法人国立病院機構　熊本医療センター",6,"○","○",null,null,null,null,null,null,null,null,"○",null,"○",null,"○",null,null,null,null,"○",null,1,null,null,null,"○"]
[112,"鹿児島県",2019,"公益財団法人慈愛会　今村総合病院",10,"○","○","○",null,null,null,null,"○",null,"○","○",null,"○",null,"○","○",null,null,null,"○",null,2,"○",null,null,"○"]
[113,"栃木県",2019,"学校法人獨協学園　獨協医科大学",21,"○","○","○","○","○","○","○","○","○","○","○","○","○","○","○","○","○","○","○","○","○",6,"○","○","○","○","○","○"]
[114,"群馬県",2019,"医療法人　群馬会　群馬病院",1,null,null,null,null,null,null,null,null,null,null,null,null,null,null,null,null,null,null,null,"○",null,0]
[115,"群馬県",2019,"前橋赤十字病院",9,"○","○","○",null,null,null,null,null,null,null,"○",null,"○",null,"○","○","○",null,null,"○",null,1,null,null,null,null,null,"○"]
[116,"千葉県",2019,"医療法人鉄蕉会　亀田総合病院",18,"○","○","○","○","○","○","○","○","○","○","○","○","○",null,"○",null,"○","○","○","○",null,4,"○","○",null,"○",null,"○"]
[117,"神奈川県",2019,"学校法人日本医科大学　日本医科大学武蔵小杉病院",8,"○","○",null,null,null,null,null,null,"○",null,null,null,"○",null,"○",null,"○","○","○",null,null,2,null,null,"○",null,null,"○"]
[118,"神奈川県",2019,"学校法人　東海大学",18,"○","○","○","○",null,"○","○","○","○","○","○","○","○",null,"○","○","○","○","○","○",null,5,"○","○","○","○","○"]
[119,"新潟県",2019,"国立大学法人新潟大学　新潟大学医歯学総合病院",17,"○","○","○","○","○","○","○",null,"○",null,"○","○","○",null,"○","○","○","○","○","○",null,3,null,null,"○",null,"○","○"]
[120,"新潟県",2019,"新潟県厚生農業協同組合連合会　上越総合病院",1,null,null,null,null,null,null,null,null,null,null,null,null,null,null,null,null,null,null,"○",null,null,0]
[121,"新潟県",2019,"新潟県厚生農業協同組合連合会　長岡中央綜合病院",1,null,null,null,null,null,null,null,null,null,null,null,null,"○",null,null,null,null,null,null,null,null,0]
[122,"新潟県",2019,"新潟県厚生農業協同組合連合会　新潟医療センター",2,null,null,null,null,null,null,null,null,"○",null,null,null,"○",null,null,null,null,null,null,null,null,0]
[123,"富山県",2019,"国立大学法人富山大学附属病院",13,"○","○",null,null,"○","○","○",null,"○",null,null,"○","○",null,"○","○","○","○","○",null,null,0]
[124,"岐阜県",2019,"医療法人澄心会　岐阜ハートセンター",9,"○","○",null,null,"○","○",null,null,"○",null,"○","○","○",null,"○",null,null,null,null,null,null,0]
[125,"静岡県",2019,"静岡県立静岡がんセンター",3,null,null,null,null,null,null,null,null,null,null,"○","○",null,null,"○",null,null,null,null,null,null,0]
[126,"静岡県",2019,"社会福祉法人 聖隷福祉事業団",10,"○","○","○",null,null,null,null,"○",null,null,"○",null,"○",null,"○",null,null,"○","○","○",null,2,"○",null,"○"]
[127,"静岡県",2019,"社会福祉法人 聖隷福祉事業団　総合病院　聖隷三方原病院",15,"○","○","○",null,null,"○","○","○","○","○","○","○","○",null,"○",null,null,"○","○","○",null,2,null,"○","○"]
[128,"京都府",2019,"市立福知山市民病院",14,"○","○","○",null,null,"○","○","○","○","○","○","○","○",null,"○",null,null,"○","○",null,null,3,"○","○",null,null,null,"○"]
[129,"大阪府",2019,"大阪赤十字病院",10,"○","○","○",null,null,null,null,null,null,null,"○",null,"○",null,"○","○","○","○","○",null,null,1,null,null,"○"]
[130,"大阪府",2019,"国立研究開発法人　国立循環器病研究センター",10,"○","○",null,"○",null,null,null,null,"○",null,null,null,"○",null,"○",null,"○","○","○","○",null,0]
[131,"兵庫県",2019,"神戸アドベンチスト病院",4,null,null,null,null,null,null,null,null,null,"○",null,null,"○",null,"○","○",null,null,null,null,null,0]
[132,"島根県",2019,"島根県立中央病院",9,"○","○",null,null,null,null,null,null,null,null,"○","○","○",null,"○",null,"○","○","○",null,null,2,null,null,"○",null,null,"○"]
[133,"岡山県",2019,"公益財団法人　大原記念倉敷中央医療機構　倉敷中央病院",10,"○","○",null,"○",null,null,null,null,"○","○",null,null,"○",null,"○",null,null,"○","○","○",null,1,null,null,null,"○"]
[134,"北海道",2020,"医療法人渓仁会　法人本部",11,"○","○","○",null,null,null,null,"○",null,"○","○",null,"○",null,"○",null,"○","○","○",null,null,2,"○",null,"○"]
[135,"北海道",2020,"医療法人徳洲会　札幌徳洲会病院",11,"○","○","○",null,null,null,null,null,"○",null,"○","○","○",null,"○",null,null,"○","○","○",null,3,null,null,"○","○",null,"○"]
[136,"北海道",2020,"国立大学法人　北海道大学病院",15,"○","○","○","○",null,"○","○",null,"○","○","○","○","○",null,"○",null,"○","○","○",null,null,2,null,"○","○"]
[137,"北海道",2020,"社会医療法人禎心会　札幌禎心会病院",4,null,null,null,null,null,null,null,null,null,"○",null,null,"○",null,"○","○",null,null,null,null,null,0]
[138,"青森県",2020,"学校法人青森田中学園　青森中央学院大学",1,null,null,null,null,null,null,null,null,null,null,null,null,null,null,"○",null,null,null,null,null,null,0]
[139,"秋田県",2020,"国立大学法人秋田大学大学院医学系研究科保健学専攻（博士前期課程）臨床看護学分野",21,"○","○","○","○","○","○","○","○","○","○","○","○","○","○","○","○","○","○","○","○","○",0]
[140,"山形県",2020,"国立大学法人山形大学医学部附属病院",12,"○","○","○",null,null,"○","○",null,"○","○",null,"○","○",null,"○",null,null,"○","○",null,null,2,null,"○","○"]
[141,"山形県",2020,"地方独立行政法人山形県・酒田市病院機構　日本海総合病院",6,"○","○",null,null,null,null,null,null,null,null,null,null,"○",null,"○",null,null,"○","○",null,null,1,null,null,"○"]
[142,"群馬県",2020,"群馬県公立大学法人　群馬県立県民健康科学大学",3,null,null,"○",null,null,null,null,null,null,null,null,null,null,null,"○",null,"○",null,null,null,null,0]
[143,"千葉県",2020,"国立大学法人千葉大学医学部附属病院",21,"○","○","○","○","○","○","○","○","○","○","○","○","○","○","○","○","○","○","○","○","○",0]
[144,"東京都",2020,"医療法人社団ダイアステップ",5,null,null,"○",null,null,null,null,"○",null,null,"○",null,null,null,"○",null,"○",null,null,null,null,1,"○"]
[145,"東京都",2020,"学校法人順天堂　順天堂大学医学部附属順天堂医院",6,"○","○",null,null,null,null,null,null,null,null,null,null,"○",null,"○",null,null,"○","○",null,null,1,null,null,"○"]
[146,"東京都",2020,"学校法人東邦大学",7,"○","○",null,null,null,null,null,null,null,null,null,null,"○",null,"○",null,null,"○","○","○",null,1,null,null,"○"]
[147,"東京都",2020,"国立研究開発法人　国立国際医療研究センター",5,"○","○",null,null,null,null,null,null,null,null,null,"○","○",null,"○",null,null,null,null,null,null,0]
[148,"東京都",2020,"国立大学法人東京医科歯科大学病院",20,"○","○","○","○","○","○","○","○","○","○","○","○","○","○","○","○","○","○","○","○",null,0]
[149,"東京都",2020,"国立大学法人東京大学　東京大学医学部附属病院",6,"○","○",null,null,null,null,null,null,null,null,null,null,"○",null,"○",null,null,"○","○",null,null,1,null,null,"○"]
[150,"東京都",2020,"町田市民病院",7,null,"○",null,null,null,null,null,"○","○",null,"○",null,"○",null,"○",null,null,null,null,"○",null,0]
[151,"神奈川県",2020,"医療法人徳洲会　湘南鎌倉総合病院",16,"○","○","○","○",null,"○","○",null,"○","○","○","○","○",null,"○","○",null,"○","○","○",null,4,null,"○","○","○","○"]
[152,"神奈川県",2020,"学校法人　北里研究所　北里大学病院",11,"○","○","○",null,null,null,"○",null,null,null,"○","○","○",null,"○",null,"○","○","○",null,null,0]
[153,"神奈川県",2020,"学校法人　聖マリアンナ医科大学　聖マリアンナ医科大学病院　看護師特定行為研修センター",21,"○","○","○","○","○","○","○","○","○","○","○","○","○","○","○","○","○","○","○","○","○",0]
[154,"神奈川県",2020,"公立大学法人横浜市立大学　看護キャリア開発支援センター",17,"○","○","○",null,null,"○","○",null,"○","○","○","○","○",null,"○","○","○","○","○","○","○",1,null,"○"]
[155,"神奈川県",2020,"公立大学法人横浜市立大学　横浜市立大学大学院医学研究科看護学専攻",7,"○","○",null,null,null,null,null,null,null,"○",null,null,"○",null,"○",null,null,"○","○",null,null,1,null,null,"○"]
[156,"神奈川県",2020,"社会福祉法人　親善福祉協会　国際親善総合病院",10,"○","○","○",null,null,null,"○",null,"○",null,"○","○","○",null,"○",null,null,"○",null,null,null,0]
[157,"富山県",2020,"黒部市民病院",2,null,null,null,null,null,null,null,null,null,null,null,null,null,null,"○",null,"○",null,null,null,null,0]
[158,"石川県",2020,"金沢医科大学病院",7,"○","○",null,null,null,null,null,null,null,null,null,null,"○",null,"○","○",null,"○","○",null,null,1,null,null,"○"]
[159,"福井県",2020,"国立大学法人　福井大学大学院医学系研究科",8,"○","○",null,null,null,null,null,null,null,null,null,null,"○",null,"○","○",null,"○","○","○",null,2,null,null,"○","○"]
[160,"長野県",2020,"地方独立行政法人長野県立病院機構　長野県立信州医療センター",5,null,null,"○",null,null,null,null,"○",null,null,"○",null,null,null,"○",null,"○",null,null,null,null,1,"○"]
[161,"長野県",2020,"長野赤十字病院",3,null,null,"○",null,null,null,null,null,null,null,"○",null,null,null,"○",null,null,null,null,null,null,0]
[162,"岐阜県",2020,"岐阜大学医学部附属病院",12,"○","○","○",null,null,"○","○",null,"○","○",null,"○","○",null,"○",null,null,"○","○",null,null,1,null,null,"○"]
[163,"岐阜県",2020,"社会医療法人蘇西厚生会　松波総合病院",1,null,null,"○",null,null,null,null,null,null,null,null,null,null,null,null,null,null,null,null,null,null,0]
[164,"岐阜県",2020,"美濃市立美濃病院",4,null,null,"○",null,null,null,null,"○",null,null,"○",null,null,null,"○",null,null,null,null,null,null,1,"○"]
[165,"静岡県",2020,"順天堂大学医学部附属静岡病院",13,"○","○",null,"○",null,null,null,null,"○",null,"○","○","○",null,"○","○","○","○","○","○",null,3,null,null,"○","○",null,"○"]
[166,"愛知県",2020,"愛知医科大学病院",9,"○","○","○",null,null,null,null,null,null,"○","○",null,"○",null,"○",null,null,"○","○",null,null,1,null,null,"○"]
[167,"三重県",2020,"国立大学法人三重大学医学部附属病院",11,"○","○",null,null,null,"○","○",null,"○",null,null,null,"○",null,"○","○",null,"○","○","○",null,3,null,null,"○","○",null,"○"]
[168,"京都府",2020,"医療法人医仁会　武田総合病院",12,"○","○","○","○",null,null,null,null,"○","○","○",null,"○",null,"○",null,"○",null,"○","○",null,2,null,null,null,"○",null,"○"]
[169,"京都府",2020,"医療法人社団石鎚会京都田辺中央病院",12,"○","○","○","○",null,null,null,"○","○",null,"○",null,"○",null,"○","○","○",null,"○",null,null,1,"○"]
[170,"京都府",2020,"京都府公立大学法人　京都府立医科大学",13,"○","○","○",null,"○","○","○",null,"○","○",null,"○","○",null,"○",null,null,"○","○",null,null,2,null,"○","○"]
[171,"大阪府",2020,"大阪医科薬科大学病院",15,"○","○","○",null,null,"○","○","○","○","○","○","○","○",null,"○",null,null,"○","○","○",null,4,"○","○","○","○"]
[172,"大阪府",2020,"大阪大学医学部附属病院",16,"○","○","○",null,null,"○","○","○","○","○",null,"○","○",null,"○","○","○","○","○","○",null,2,null,null,"○","○"]
[173,"大阪府",2020,"関西医科大学附属病院",10,"○","○",null,null,null,null,"○",null,"○",null,null,"○","○",null,"○",null,"○","○","○",null,null,1,null,null,"○"]
[174,"兵庫県",2020,"公益社団法人日本麻酔科学会",6,"○","○",null,null,null,null,null,null,null,null,null,null,"○",null,"○",null,null,"○","○",null,null,1,null,null,"○"]
[175,"兵庫県",2020,"社会医療法人　榮昌会　吉田病院",3,null,null,null,null,null,null,null,null,"○",null,null,null,"○",null,null,null,null,null,null,"○",null,0]
[176,"島根県",2020,"公立大学法人島根県立大学　島根県立大学大学院看護学研究科看護学専攻",8,null,null,"○",null,null,null,null,"○",null,"○","○",null,null,null,"○","○","○",null,null,"○",null,1,"○"]
[177,"島根県",2020,"国立大学法人島根大学医学部附属病院",5,null,null,null,null,null,null,null,null,null,null,"○",null,"○",null,"○",null,"○",null,"○",null,null,0]
[178,"岡山県",2020,"国立大学法人岡山大学　岡山大学病院",12,"○","○","○",null,null,"○","○",null,"○","○",null,"○","○",null,"○",null,null,"○","○",null,null,2,null,"○","○"]
[179,"山口県",2020,"国立大学法人山口大学医学部附属病院",13,"○","○","○",null,null,"○","○",null,"○","○",null,"○","○",null,"○",null,null,"○","○","○",null,2,null,"○",null,"○"]
[180,"徳島県",2020,"国立大学法人徳島大学　徳島大学病院",16,"○","○","○",null,null,"○","○",null,"○","○","○","○","○",null,"○","○","○","○","○","○",null,3,null,null,"○","○","○"]
[181,"香川県",2020,"国立大学法人香川大学",14,"○","○","○",null,null,"○","○","○","○","○","○","○","○",null,"○",null,null,"○","○",null,null,3,"○","○","○"]
[182,"高知県",2020,"国立大学法人高知大学　高知大学医学部附属病院",16,"○","○","○",null,null,"○","○",null,"○","○","○","○","○",null,"○","○","○","○","○","○",null,4,null,"○","○","○","○"]
[183,"福岡県",2020,"医療法人八女発心会　姫野病院",3,null,null,"○",null,null,null,null,null,null,null,null,null,"○",null,"○",null,null,null,null,null,null,0]
[184,"福岡県",2020,"社会福祉法人恩賜財団済生会支部福岡県済生会福岡総合病院",12,"○","○","○","○",null,null,"○",null,"○",null,"○",null,"○",null,"○",null,null,"○","○","○",null,3,null,null,"○","○",null,"○"]
[185,"福岡県",2020,"地方独立行政法人福岡市立病院機構　福岡市民病院",6,"○","○",null,null,null,null,null,null,null,null,null,null,"○",null,"○",null,null,"○","○",null,null,1,null,null,"○"]
[186,"長崎県",2020,"国立大学法人　長崎大学病院",8,"○","○","○",null,null,null,null,"○",null,null,"○","○","○",null,"○",null,null,null,null,null,null,0]
[187,"長崎県",2020,"独立行政法人国立病院機構　長崎医療センター",4,null,"○","○",null,null,null,null,null,null,null,null,null,null,null,"○",null,"○",null,null,null,null,0]
[188,"熊本県",2020,"学校法人銀杏学園　熊本保健科学大学 キャリア教育研修センター",2,null,null,null,null,null,null,null,null,null,null,null,null,null,null,"○",null,null,null,null,"○",null,0]
[189,"熊本県",2020,"国立大学法人熊本大学　熊本大学病院",12,"○","○","○",null,null,"○","○",null,"○","○",null,"○","○",null,"○",null,null,"○","○",null,null,3,null,"○","○",null,null,"○"]
[190,"熊本県",2020,"社会福祉法人恩賜財団済生会熊本病院",12,"○","○",null,"○",null,"○",null,null,"○",null,"○",null,"○",null,"○",null,"○","○","○","○",null,3,null,null,"○","○",null,"○"]
[191,"青森県",2020,"八戸市立市民病院",13,"○","○","○",null,null,"○","○",null,"○","○",null,"○","○",null,"○",null,null,"○","○","○",null,2,null,"○",null,"○"]
[192,"宮城県",2020,"独立行政法人国立病院機構仙台医療センター",8,null,null,"○",null,null,null,null,null,"○","○","○",null,"○",null,"○","○",null,null,null,null,"○",0]
[193,"宮城県",2020,"国立大学法人東北大学　東北大学病院",12,"○","○","○",null,null,"○","○",null,"○","○",null,"○","○",null,"○",null,null,"○","○",null,null,2,null,"○","○"]
[194,"埼玉県",2020,"防衛医科大学校病院",6,"○","○",null,null,null,null,null,null,null,null,null,null,"○",null,"○",null,null,"○","○",null,null,1,null,null,"○"]
[195,"東京都",2020,"独立行政法人国立病院機構東京医療センター",7,null,null,null,null,null,null,null,null,"○",null,"○","○","○",null,"○","○",null,"○",null,null,null,1,null,null,null,null,"○"]
[196,"神奈川県",2020,"独立行政法人国立病院機構横浜医療センター",6,"○","○",null,null,null,null,null,null,null,null,null,null,"○",null,"○",null,null,"○","○",null,null,1,null,null,"○"]
[197,"新潟県",2020,"独立行政法人国立病院機構　新潟病院",5,null,"○","○",null,null,null,null,"○",null,null,"○",null,null,null,"○",null,null,null,null,null,null,1,"○"]
[198,"富山県",2020,"高岡市民病院",3,null,null,null,null,null,null,null,null,null,null,null,null,"○",null,"○",null,"○",null,null,null,null,0]
[199,"山梨県",2020,"国立大学法人山梨大学医学部附属病院",18,"○","○","○","○",null,"○","○",null,"○","○","○","○","○",null,"○","○","○","○","○","○","○",0]
[200,"岐阜県",2020,"地方独立行政法人岐阜県総合医療センター",12,"○","○","○",null,null,"○","○",null,"○","○",null,"○","○",null,"○",null,null,"○","○",null,null,2,null,"○",null,null,null,"○"]
[201,"静岡県",2020,"地方独立行政法人　静岡市立静岡病院",10,"○","○",null,"○",null,null,null,null,"○",null,"○",null,"○",null,"○","○",null,"○","○",null,null,2,null,null,"○",null,null,"○"]
[202,"静岡県",2020,"地方独立行政法人静岡県立病院機構静岡県立総合病院",6,null,null,null,null,null,null,"○",null,"○","○",null,"○","○",null,"○",null,null,null,null,null,null,0]
[203,"愛知県",2020,"公益社団法人　愛知県看護協会",5,null,null,"○",null,null,null,null,"○",null,null,"○",null,null,null,"○",null,"○",null,null,null,null,1,"○"]
[204,"愛知県",2020,"独立行政法人地域医療機能推進機構中京病院",10,"○","○",null,null,null,"○","○",null,"○",null,null,"○","○",null,"○",null,null,"○","○",null,null,0]
[205,"愛知県",2020,"名古屋市立大学病院",3,null,null,null,null,null,null,null,null,null,null,"○",null,null,null,"○",null,"○",null,null,null,null,0]
[206,"京都府",2020,"京都大学医学部附属病院",6,"○","○",null,null,null,null,null,null,null,null,null,null,"○",null,"○",null,null,"○","○",null,null,1,null,null,"○"]
[207,"大阪府",2020,"独立行政法人国立病院機構　大阪南医療センター",7,"○","○",null,null,null,null,null,null,null,null,null,null,"○",null,"○",null,null,"○","○","○",null,2,null,null,"○","○"]
[208,"兵庫県",2020,"公益社団法人兵庫県看護協会",2,null,null,null,null,null,null,null,null,null,null,null,null,null,null,"○",null,null,null,null,"○",null,0]
[209,"兵庫県",2020,"神戸大学医学部附属病院",6,"○","○",null,null,null,null,null,null,null,null,null,null,"○",null,"○",null,null,"○","○",null,null,1,null,null,"○"]
[210,"奈良県",2020,"地方独立行政法人奈良県立病院機構医療専門職教育研修センター",21,"○","○","○","○","○","○","○","○","○","○","○","○","○","○","○","○","○","○","○","○","○",0]
[211,"広島県",2020,"独立行政法人国立病院機構　呉医療センター",6,"○","○",null,null,null,null,null,null,null,"○",null,null,"○",null,"○",null,null,null,null,"○",null,1,null,null,null,"○"]
[212,"広島県",2020,"独立行政法人国立病院機構　広島西医療センター",5,null,null,"○",null,null,null,null,"○",null,"○","○",null,null,null,"○",null,null,null,null,null,null,1,"○"]
[213,"山口県",2020,"社会福祉法人　恩賜財団済生会支部　山口県済生会山口総合病院",4,"○","○",null,null,null,null,null,null,null,null,null,null,"○",null,"○",null,null,null,null,null,null,0]
[214,"徳島県",2020,"国立大学法人徳島大学大学院医歯薬学研究部保健学域保健科学部門",5,null,null,"○",null,null,null,null,"○",null,null,"○",null,null,null,"○","○",null,null,null,null,null,1,"○"]
[215,"愛媛県",2020,"国立大学法人愛媛大学",4,"○","○",null,null,null,null,null,null,null,null,"○",null,null,null,"○",null,null,null,null,null,null,0]
[216,"福岡県",2020,"福岡県立大学看護実践教育センター　特定行為研修部門",5,null,null,"○",null,null,null,null,"○",null,null,"○",null,null,null,"○",null,"○",null,null,null,null,1,"○"]
[217,"福岡県",2020,"公立八女総合病院",6,"○","○",null,null,null,null,null,null,null,null,null,null,"○",null,"○",null,null,"○","○",null,null,1,null,null,"○"]
[218,"佐賀県",2020,"国立大学法人佐賀大学医学部附属病院",7,"○","○",null,null,null,null,null,null,null,null,null,null,"○",null,"○",null,"○","○","○",null,null,1,null,null,"○"]
[219,"大分県",2020,"大分県立病院",13,"○","○","○",null,null,"○","○",null,"○","○",null,"○","○",null,"○",null,null,"○","○","○",null,2,null,"○",null,"○"]
[220,"大分県",2020,"大分赤十字病院",4,null,null,"○",null,null,null,null,null,null,null,null,null,"○",null,"○",null,"○",null,null,null,null,0]
[221,"沖縄県",2020,"社会医療法人　友愛会　友愛医療センター",11,"○","○",null,null,null,"○","○",null,"○",null,"○","○","○",null,"○",null,null,"○","○",null,null,1,null,null,"○"]
[222,"北海道",2021,"医療法人徳洲会　札幌東徳洲会病院",2,null,null,null,null,null,null,null,null,"○",null,null,null,"○",null,null,null,null,null,null,null,null,0]
[223,"北海道",2021,"市立函館病院",5,null,"○",null,"○",null,null,null,null,"○",null,"○",null,"○",null,null,null,null,null,null,null,null,0]
[224,"北海道",2021,"独立行政法人国立病院機構函館病院",7,null,null,null,null,null,null,null,null,"○",null,"○","○","○",null,"○","○",null,"○",null,null,null,1,null,null,null,null,"○"]
[225,"岩手県",2021,"独立行政法人国立病院機構岩手病院",2,null,null,"○",null,null,null,null,"○",null,null,null,null,null,null,null,null,null,null,null,null,null,0]
[226,"山形県",2021,"独立行政法人国立病院機構米沢病院",4,null,null,"○",null,null,null,null,"○",null,null,"○",null,null,null,"○",null,null,null,null,null,null,1,"○"]
[227,"茨城県",2021,"茨城県立医療大学",2,null,null,null,null,null,null,null,null,null,null,null,null,null,null,"○",null,null,null,null,"○",null,0]
[228,"群馬県",2021,"伊勢崎市民病院",8,null,"○",null,null,null,null,null,null,null,null,"○",null,"○",null,"○","○",null,"○","○","○",null,0]
[229,"群馬県",2021,"医療法人済恵会　須藤病院",2,null,null,null,null,null,null,null,null,null,"○",null,null,null,null,"○",null,null,null,null,null,null,0]
[230,"群馬県",2021,"国立大学法人群馬大学医学部附属病院",15,"○","○","○","○",null,"○","○",null,"○","○",null,"○","○",null,"○",null,"○","○","○","○",null,1,null,"○"]
[231,"千葉県",2021,"医療法人　沖縄徳洲会　鎌ケ谷総合病院",12,"○","○","○",null,null,"○","○",null,"○","○",null,"○","○",null,"○",null,null,"○","○",null,null,1,null,"○"]
[232,"東京都",2021,"一般社団法人　日本周麻酔期看護医学会",6,"○","○",null,null,null,null,null,null,null,null,null,null,"○",null,"○",null,null,"○","○",null,null,1,null,null,"○"]
[233,"東京都",2021,"学校法人杏林学園　杏林大学医学部付属病院",12,"○","○","○",null,null,"○","○",null,"○","○",null,"○","○",null,"○",null,null,"○","○",null,null,1,null,"○"]
[234,"東京都",2021,"学校法人日本医科大学　日本医科大学多摩永山病院",7,"○","○","○",null,null,null,null,null,null,null,null,null,"○",null,"○",null,null,"○","○",null,null,1,null,null,"○"]
[235,"東京都",2021,"社会福祉法人三井記念病院",2,null,null,null,null,null,null,null,null,null,null,"○","○",null,null,null,null,null,null,null,null,null,0]
[236,"神奈川県",2021,"医療法人社団康心会　湘南東部総合病院",8,null,null,"○",null,null,null,"○","○",null,null,"○","○","○","○","○",null,null,null,null,null,null,1,"○"]
[237,"東京都",2021,"学校法人昭和大学　昭和大学認定看護師教育センター",14,"○","○","○",null,null,"○",null,null,"○",null,"○","○","○","○","○","○",null,"○","○","○",null,2,null,null,"○",null,"○"]
[238,"神奈川県",2021,"神奈川県厚生農業協同組合連合会　相模原協同病院",6,"○","○",null,null,null,null,null,null,"○","○",null,null,"○",null,"○",null,null,null,null,null,null,0]
[239,"神奈川県",2021,"地方独立行政法人　神奈川県立病院機構　神奈川県立足柄上病院",3,null,null,null,null,null,null,null,null,null,null,null,"○",null,null,"○",null,"○",null,null,null,null,0]
[240,"神奈川県",2021,"横浜市立市民病院",8,null,"○",null,null,null,null,null,null,null,"○","○","○","○",null,"○",null,"○",null,"○",null,null,0]
[241,"長野県",2021,"JA長野厚生連　佐久総合病院　佐久医療センター",16,"○","○","○","○",null,"○","○","○","○",null,"○","○","○",null,"○",null,"○","○","○","○",null,1,"○"]
[242,"静岡県",2021,"静岡県公立大学法人　静岡県立大学",6,null,null,"○",null,null,null,null,"○",null,null,"○",null,null,null,"○","○","○",null,null,null,null,1,"○"]
[243,"愛知県",2021,"愛知県厚生農業協同組合連合会　海南病院",11,"○","○",null,null,null,null,"○",null,"○",null,"○","○","○",null,"○","○",null,"○","○",null,null,2,null,null,"○",null,"○"]
[244,"愛知県",2021,"医療法人　徳洲会　名古屋徳洲会総合病院",4,"○","○",null,null,null,null,null,null,null,null,null,null,"○",null,null,null,null,null,"○",null,null,0]
[245,"愛知県",2021,"小牧市民病院",10,"○","○",null,null,null,null,null,null,"○",null,"○","○","○",null,"○","○",null,"○","○",null,null,2,null,null,null,null,"○","○"]
[246,"京都府",2021,"医療法人徳洲会　宇治徳洲会病院",16,"○","○","○","○",null,null,null,"○","○",null,"○","○","○","○","○","○","○","○","○","○",null,4,"○",null,"○","○","○"]
[247,"京都府",2021,"社会福祉法人京都社会事業財団　京都桂病院",9,"○","○",null,null,null,null,null,null,null,"○","○",null,"○",null,"○",null,null,"○","○","○",null,2,null,null,"○","○"]
[248,"大阪府",2021,"医療法人ダイワ会　大和病院",2,null,null,null,null,null,null,null,null,null,"○",null,null,null,null,"○",null,null,null,null,null,null,0]
[249,"大阪府",2021,"医療法人徳洲会　野崎徳洲会病院",6,"○","○","○",null,null,null,null,null,"○","○",null,null,"○",null,null,null,null,null,null,null,null,0]
[250,"大阪府",2021,"医療法人　徳洲会　八尾徳洲会総合病院",15,"○","○","○",null,null,"○","○","○","○","○","○","○","○",null,"○",null,null,"○","○","○",null,4,"○","○","○","○"]
[251,"大阪府",2021,"社会医療法人ペガサス　馬場記念病院",12,"○","○","○",null,null,null,"○","○","○","○","○","○","○",null,"○","○",null,null,null,null,null,1,"○"]
[252,"大阪府",2021,"社会医療法人生長会　ベルランド総合病院",14,"○","○","○","○",null,"○","○",null,"○","○",null,"○","○",null,"○",null,null,"○","○","○",null,4,null,"○","○","○",null,"○"]
[253,"兵庫県",2021,"神戸市立医療センター　中央市民病院",2,null,"○",null,null,null,null,null,null,null,null,null,null,null,null,"○",null,null,null,null,null,null,0]
[254,"奈良県",2021,"公益財団法人　天理よろづ相談所",13,"○","○","○",null,null,"○","○","○","○","○","○","○","○",null,"○",null,null,"○",null,null,null,1,"○"]
[255,"岡山県",2021,"地方独立行政法人　岡山市立総合医療センター　岡山市立市民病院",5,"○","○",null,null,null,null,null,null,null,null,null,null,"○",null,"○",null,null,null,null,"○",null,1,null,null,null,"○"]
[256,"広島県",2021,"独立行政法人国立病院機構福山医療センター",6,"○","○",null,null,null,null,null,null,null,null,null,null,"○",null,"○",null,null,"○","○",null,null,1,null,null,"○"]
[257,"山口県",2021,"公立大学法人　山口県立大学",2,null,null,null,null,null,null,null,null,null,null,null,null,null,null,"○","○",null,null,null,null,null,0]
[258,"山口県",2021,"独立行政法人国立病院機構関門医療センター",11,"○","○",null,null,null,null,null,null,"○","○","○","○","○",null,"○","○",null,"○",null,"○",null,2,null,null,null,"○","○"]
[259,"福岡県",2021,"医療法人社団　久英会　高良台リハビリテーション病院",4,null,null,"○",null,null,null,null,"○",null,null,"○",null,null,null,"○",null,null,null,null,null,null,1,"○"]
[260,"福岡県",2021,"医療法人徳洲会　福岡徳洲会病院",4,null,null,"○",null,null,null,null,"○",null,null,"○",null,null,null,"○",null,null,null,null,null,null,1,"○"]
[261,"福岡県",2021,"学校法人　国際医療福祉大学　九州地区生涯教育センター",2,null,null,null,null,null,null,null,null,null,null,null,null,null,null,"○","○",null,null,null,null,null,0]
[262,"福岡県",2021,"社会医療法人天神会　新古賀病院",11,"○","○","○",null,null,null,null,"○",null,null,"○",null,"○",null,"○","○","○","○","○",null,null,1,"○"]
[263,"福岡県",2021,"社会医療法人　陽明会　小波瀬病院",14,"○","○","○",null,null,"○","○","○","○","○","○","○","○",null,"○",null,null,"○","○",null,null,2,"○","○"]
[264,"福岡県",2021,"独立行政法人国立病院機構福岡東医療センター",6,"○","○",null,null,null,"○",null,null,null,null,null,null,"○",null,"○",null,null,null,null,"○",null,1,null,null,null,"○"]
[265,"佐賀県",2021,"独立行政法人国立病院機構嬉野医療センター",5,"○","○",null,null,null,null,null,null,null,null,null,null,"○",null,"○",null,null,null,null,"○",null,1,null,null,null,"○"]
[266,"佐賀県",2021,"独立行政法人国立病院機構肥前精神医療センター",1,null,null,null,null,null,null,null,null,null,null,null,null,null,null,null,null,null,null,null,"○",null,0]
[267,"熊本県",2021,"熊本赤十字病院",5,"○","○",null,null,null,null,null,null,null,null,null,null,"○",null,"○",null,null,null,null,"○",null,1,null,null,null,"○"]
[268,"鹿児島県",2021,"鹿児島市立病院",15,"○","○","○",null,null,"○","○","○","○","○","○","○","○",null,"○",null,null,"○","○","○",null,4,"○","○","○","○"]
[269,"鹿児島県",2021,"公益社団法人昭和会　いまきいれ総合病院",6,"○","○",null,null,null,null,null,null,null,null,null,null,"○",null,"○",null,null,"○","○",null,null,1,null,null,"○"]
[270,"沖縄県",2021,"医療法人沖縄徳洲会　中部徳洲会病院",9,"○","○",null,null,null,null,null,"○",null,"○","○",null,"○",null,"○",null,null,"○","○",null,null,1,null,null,"○"]
[271,"沖縄県",2021,"社会医療法人敬愛会中頭病院",5,null,"○","○",null,null,null,null,"○",null,null,null,null,null,null,"○",null,"○",null,null,null,null,0]
[272,"北海道",2021,"旭川医科大学病院",12,"○","○","○",null,null,"○","○",null,"○","○",null,"○","○",null,"○",null,null,"○","○",null,null,1,null,"○"]
[273,"北海道",2021,"北見赤十字病院",1,null,null,null,null,null,null,null,null,null,null,"○",null,null,null,null,null,null,null,null,null,null,0]
[274,"宮城県",2021,"一般財団法人厚生会　仙台厚生病院",8,"○","○",null,"○",null,null,null,null,null,null,null,null,null,null,"○",null,"○","○","○","○",null,0]
[275,"群馬県",2021,"学校法人群馬パース大学 群馬パース大学 看護実践教育センター",1,null,null,null,null,null,null,null,null,null,null,null,null,null,null,"○",null,null,null,null,null,null,0]
[276,"群馬県",2021,"学校法人高崎健康福祉大学",2,null,null,null,null,null,null,null,null,null,null,null,null,null,null,"○","○",null,null,null,null,null,0]
[277,"群馬県",2021,"独立行政法人国立病院機構　高崎総合医療センター",12,"○","○",null,"○",null,"○",null,null,"○","○",null,null,"○",null,"○",null,"○","○","○","○",null,0]
[278,"東京都",2021,"医療法人社団東山会　調布東山病院",3,null,null,null,null,null,null,null,null,null,null,null,null,"○",null,"○",null,"○",null,null,null,null,0]
[279,"神奈川県",2021,"独立行政法人国立病院機構箱根病院",4,null,null,"○",null,null,null,null,"○",null,null,"○",null,null,null,"○",null,null,null,null,null,null,1,"○"]
[280,"長野県",2021,"国立大学法人信州大学　信州大学医学部附属病院",6,"○","○",null,null,null,null,null,null,null,null,null,null,"○",null,"○",null,null,"○","○",null,null,1,null,null,"○"]
[281,"静岡県",2021,"藤枝市立総合病院",12,"○","○",null,"○",null,null,null,null,"○","○","○",null,"○",null,"○","○",null,"○","○","○",null,3,null,null,"○","○",null,"○"]
[282,"静岡県",2021,"富士市立中央病院",8,"○","○",null,null,null,null,null,"○",null,null,"○","○","○",null,"○",null,null,null,"○",null,null,0]
[283,"愛知県",2021,"社会医療法人杏嶺会　一宮西病院",4,"○","○",null,null,null,null,null,null,null,null,null,null,"○",null,null,null,null,null,"○",null,null,0]
[284,"愛知県",2021,"半田市立半田病院",13,"○","○","○",null,null,"○","○",null,"○","○","○","○","○",null,"○",null,null,"○","○",null,null,1,null,"○"]
[285,"大阪府",2021,"地方独立行政法人大阪市民病院機構　大阪市立総合医療センター",11,"○","○",null,null,null,null,null,"○","○","○","○","○","○",null,"○",null,null,"○","○",null,null,2,null,null,"○",null,null,"○"]
[286,"兵庫県",2021,"株式会社Vitaars",9,"○","○",null,"○",null,null,null,null,"○","○",null,null,"○",null,"○",null,null,"○","○",null,null,2,null,null,"○",null,null,"○"]
[287,"兵庫県",2021,"地方独立行政法人加古川市民病院機構　加古川中央市民病院",10,"○","○",null,"○","○","○",null,null,"○",null,"○",null,"○",null,"○",null,null,null,"○",null,null,0]
[288,"愛媛県",2021,"社会医療法人石川記念会　HITO病院",6,null,null,"○",null,null,null,null,"○",null,null,"○",null,"○",null,"○",null,"○",null,null,null,null,0]
[289,"大分県",2021,"大分大学医学部附属病院",8,"○","○","○",null,null,null,null,null,null,null,null,null,"○",null,"○",null,null,"○","○","○",null,3,"○",null,"○","○"]
[290,"北海道",2022,"独立行政法人国立病院機構北海道医療センター",7,"○","○","○",null,null,null,null,"○",null,null,"○","○",null,null,"○",null,null,null,null,null,null,1,"○"]
[291,"北海道",2022,"名寄市立総合病院",8,"○","○",null,null,null,null,null,null,null,"○","○",null,"○",null,"○",null,null,"○","○",null,null,1,null,null,"○"]
[292,"茨城県",2022,"茨城県厚生農業協同組合連合会　総合病院　土浦協同病院",7,"○","○",null,null,null,null,null,null,null,null,null,null,"○",null,"○",null,null,"○","○","○",null,2,null,null,"○","○"]
[293,"千葉県",2022,"医療法人社団葵会　柏たなか病院",2,null,null,null,null,null,null,null,null,null,null,null,null,null,null,"○","○",null,null,null,null,null,0]
[294,"千葉県",2022,"医療法人社団協友会　柏厚生総合病院",6,null,null,null,null,null,null,null,"○","○","○","○",null,"○",null,"○",null,null,null,null,null,null,0]
[295,"東京都",2022,"一般社団法人日本精神科看護協会",3,null,null,null,null,null,null,null,null,null,null,null,null,null,null,"○",null,"○",null,null,"○",null,0]
[296,"神奈川県",2022,"小田原市立病院",3,null,null,null,null,null,null,null,null,null,null,"○",null,null,null,"○","○",null,null,null,null,null,0]
[297,"富山県",2022,"国立大学法人富山大学大学院総合医薬学研究科総合医薬学専攻",14,"○","○","○",null,null,null,null,"○","○",null,"○","○","○","○","○","○","○","○","○",null,null,2,"○",null,null,null,"○"]
[298,"山梨県",2022,"地方独立行政法人山梨県立病院機構山梨県立中央病院",9,"○","○",null,null,null,null,null,null,"○",null,null,null,null,null,"○","○","○","○","○","○",null,0]
[299,"長野県",2022,"長野県看護大学看護実践国際研究センター",2,null,null,null,null,null,null,null,null,null,null,null,null,null,null,"○","○",null,null,null,null,null,0]
[300,"静岡県",2022,"公益社団法人静岡県看護協会",2,null,null,null,null,null,null,null,null,null,null,null,null,null,null,"○","○",null,null,null,null,null,0]
[301,"愛知県",2022,"医療法人清須呼吸器疾患研究会　はるひ呼吸器病院",4,"○","○","○",null,null,null,null,null,null,null,null,null,"○",null,null,null,null,null,null,null,null,0]
[302,"京都府",2022,"京都橘大学看護教育研修センター",2,null,null,null,null,null,null,null,null,null,null,"○",null,null,null,"○",null,null,null,null,null,null,0]
[303,"大阪府",2022,"医療法人東和会　第一東和会病院",11,"○","○",null,null,null,null,"○",null,"○",null,"○",null,"○",null,"○","○","○","○","○",null,null,1,null,null,"○"]
[304,"大阪府",2022,"医療法人徳洲会　松原徳洲会病院",4,null,"○",null,null,null,null,"○",null,null,null,"○","○","○",null,"○",null,null,null,null,null,null,0]
[305,"大阪府",2022,"近畿大学病院",5,"○","○",null,null,null,null,null,null,null,null,null,null,"○",null,"○",null,null,"○","○","○",null,2,null,null,"○","○"]
[306,"大阪府",2022,"国立大学法人 大阪大学",1,null,null,null,null,null,null,null,null,null,null,null,null,null,null,"○",null,null,null,null,null,null,0]
[307,"大阪府",2022,"森ノ宮医療大学　大学院　保健医療学研究科　看護学専攻博士前期課程　NPコース",19,"○","○","○","○","○","○","○","○","○","○","○","○","○",null,"○","○","○","○","○","○",null,0]
[308,"兵庫県",2022,"独立行政法人国立病院機構　姫路医療センター",3,null,"○",null,null,null,null,null,null,null,"○",null,null,"○",null,null,null,null,null,null,null,null,0]
[309,"岡山県",2022,"独立行政法人国立病院機構　岡山医療センター",13,"○","○","○",null,null,"○","○",null,"○","○",null,"○","○",null,"○",null,"○","○","○",null,null,1,null,"○"]
[310,"広島県",2022,"医療法人社団二山会　宗近病院",1,null,null,null,null,null,null,null,null,null,null,null,null,null,null,null,null,null,null,null,"○",null,0]
[311,"広島県",2022,"独立行政法人国立病院機構東広島医療センター",13,"○","○","○",null,null,"○","○",null,"○","○",null,"○","○",null,"○",null,"○","○","○",null,null,1,null,"○"]
[312,"愛媛県",2022,"独立行政法人国立病院機構四国がんセンター",8,null,null,null,null,null,null,null,null,"○","○","○","○","○",null,"○","○",null,"○",null,null,null,1,null,null,null,null,"○"]
[313,"高知県",2022,"独立行政法人国立病院機構　高知病院",8,"○","○","○",null,null,"○","○","○",null,null,null,"○",null,null,"○",null,null,null,null,null,null,0]
[314,"福岡県",2022,"医療法人聖峰会　田主丸中央病院",2,null,null,null,null,null,null,null,null,null,null,null,null,"○",null,"○",null,null,null,null,null,null,0]
[315,"福岡県",2022,"株式会社　麻生　飯塚病院",6,"○","○",null,null,null,null,null,null,null,null,null,null,"○",null,"○",null,null,"○","○",null,null,1,null,null,"○"]
[316,"福岡県",2022,"久留米大学認定看護師教育センター",6,"○","○",null,null,null,null,null,null,null,null,null,null,"○",null,"○",null,null,"○","○",null,null,1,null,null,"○"]
[317,"福岡県",2022,"独立行政法人国立病院機構九州医療センター",12,"○","○",null,null,null,null,null,null,"○",null,"○","○","○",null,"○","○","○","○","○","○",null,3,null,null,"○","○","○"]
[318,"福岡県",2022,"独立行政法人国立病院機構九州がんセンター",5,null,null,null,null,null,null,"○",null,null,null,null,"○",null,null,"○","○",null,"○",null,null,null,0]
[319,"宮崎県",2022,"社会医療法人善仁会　宮崎善仁会病院",3,"○","○",null,null,null,null,null,null,null,null,null,null,null,null,"○",null,null,null,null,null,null,0]
[320,"北海道",2022,"独立行政法人国立病院機構旭川医療センター",5,null,null,"○",null,null,null,null,"○",null,null,"○",null,"○",null,"○",null,null,null,null,null,null,1,"○"]
[321,"秋田県",2022,"秋田大学医学部附属病院",21,"○","○","○","○","○","○","○","○","○","○","○","○","○","○","○","○","○","○","○","○","○",0]
[322,"埼玉県",2022,"医療法人社団　武蔵野会　ＴＭＧあさか医療センター",9,"○","○",null,null,null,null,null,null,"○",null,null,null,"○",null,"○",null,"○","○","○","○",null,1,null,null,"○"]
[323,"埼玉県",2022,"社会医療法人財団石心会　埼玉石心会病院",14,"○","○","○",null,"○","○","○",null,"○","○",null,"○","○",null,"○",null,null,"○","○","○",null,3,null,"○","○","○"]
[324,"埼玉県",2022,"医療法人社団東光会　戸田中央総合病院",12,"○","○","○","○",null,null,null,null,"○",null,"○",null,"○","○","○",null,"○","○","○",null,null,0]
[325,"千葉県",2022,"自動車事故対策機構　千葉療護センター",1,null,null,"○",null,null,null,null,null,null,null,null,null,null,null,null,null,null,null,null,null,null,0]
[326,"東京都",2022,"医療法人社団時正会　佐々総合病院",8,"○","○",null,null,null,null,null,null,"○",null,null,"○","○",null,"○",null,null,"○","○",null,null,1,null,null,"○"]
[327,"東京都",2022,"学校法人順天堂　順天堂大学医学部附属練馬病院",9,"○","○",null,null,null,null,null,null,"○",null,null,null,"○",null,"○",null,"○","○","○","○",null,2,null,null,"○","○"]
[328,"東京都",2022,"東京医療保健大学大学院　医療保健学研究科　医療保健学専攻　",7,null,null,"○",null,null,null,null,"○",null,null,"○",null,null,null,"○","○","○",null,null,"○",null,1,"○"]
[329,"神奈川県",2022,"一般財団法人神奈川県警友会　けいゆう病院",1,null,null,null,null,null,null,null,null,null,null,null,null,null,null,"○",null,null,null,null,null,null,1]
[330,"神奈川県",2022,"医療法人徳洲会　湘南藤沢徳洲会病院",1,null,null,null,null,null,null,null,null,null,null,null,null,"○",null,null,null,null,null,null,null,null,0]
[331,"神奈川県",2022,"藤沢市民病院",2,null,null,null,null,null,null,null,null,null,null,null,null,null,null,"○",null,"○",null,null,null,null,0]
[332,"岐阜県",2022,"独立行政法人国立病院機構　長良医療センター",5,null,null,"○",null,null,null,null,"○",null,null,"○",null,null,null,"○","○",null,null,null,null,null,1,"○"]
[333,"三重県",2022,"医療法人永井病院",12,"○","○","○",null,null,null,"○","○","○","○","○",null,"○",null,"○",null,null,"○","○",null,null,2,"○",null,"○"]
[334,"京都府",2022,"独立行政法人国立病院機構　京都医療センター",6,"○","○",null,null,null,null,null,null,null,null,null,null,"○",null,"○","○",null,null,"○",null,null,0]
[335,"大阪府",2022,"地方独立行政法人　市立東大阪医療センター",15,"○","○","○","○",null,"○","○","○","○","○","○","○","○",null,"○",null,null,"○","○",null,null,4,"○","○","○",null,null,"○"]
[336,"広島県",2022,"地方独立行政法人広島市立病院機構広島市立北部医療センタ－安佐市民病院",12,"○","○","○",null,null,"○","○",null,"○","○",null,"○","○",null,"○",null,null,"○","○",null,null,1,null,"○"]
[337,"広島県",2022,"社会医療法人祥和会　脳神経センター大田記念病院",2,null,null,null,null,null,null,null,null,null,null,null,null,"○",null,"○",null,null,null,null,null,null,0]
[338,"宮崎県",2022,"独立行政法人国立病院機構宮崎東病院",1,null,null,"○",null,null,null,null,null,null,null,null,null,null,null,null,null,null,null,null,null,null,0]
[339,"埼玉県",2023,"医療法人社団武蔵野会　新座志木中央総合病院",3,null,null,null,null,null,"○",null,null,null,null,null,null,null,null,"○",null,null,"○",null,null,null,0]
[340,"千葉県",2023,"医療法人徳洲会　千葉西総合病院",12,"○","○","○",null,null,"○","○",null,"○","○",null,"○","○",null,"○",null,null,"○","○",null,null,2,null,"○","○"]
[341,"千葉県",2023,"国立研究開発法人国立がん研究センター東病院",1,null,null,null,null,null,null,null,null,null,null,null,null,null,null,"○",null,null,null,null,null,null,0]
[342,"東京都",2023,"医療法人財団健貢会　総合東京病院",6,"○","○",null,null,null,null,null,null,null,null,null,null,"○",null,"○",null,null,"○","○",null,null,1,null,null,"○"]
[343,"東京都",2023,"地方独立行政法人東京都立病院機構　東京都立墨東病院",11,"○","○","○","○",null,null,null,null,"○","○",null,null,"○",null,"○","○","○",null,"○",null,null,0]
[344,"東京都",2023,"独立行政法人国立病院機構災害医療センター",7,null,null,null,null,null,null,null,null,"○",null,"○","○","○",null,"○","○",null,"○",null,null,null,1,null,null,null,null,"○"]
[345,"新潟県",2023,"新潟県地域医療推進機構魚沼基幹病院",7,null,null,"○",null,null,null,null,"○","○",null,"○",null,"○",null,"○",null,null,null,null,"○",null,1,"○"]
[346,"山梨県",2023,"公立大学法人山梨県立大学",2,null,null,null,null,null,null,null,null,null,null,null,null,null,null,"○","○",null,null,null,null,null,0]
[347,"富山県",2023,"富山市立富山市民病院",4,null,null,null,null,null,null,null,null,"○","○",null,null,"○",null,"○",null,null,null,null,null,null,0]
[348,"京都府",2023,"学校法人　京都育英館　京都看護大学",2,null,null,null,null,null,null,null,null,null,null,null,null,null,null,"○","○",null,null,null,null,null,0]
[349,"大阪府",2023,"一般財団法人住友病院",7,"○","○",null,"○",null,null,null,null,"○",null,null,null,"○",null,"○",null,null,null,"○",null,null,1,null,null,null,null,null,"○"]
[350,"大阪府",2023,"学校法人金蘭会学園　千里金蘭大学　大学院　看護学研究科",1,null,null,null,null,null,null,null,null,null,null,null,null,null,null,"○",null,null,null,null,null,null,0]
[351,"大阪府",2023,"社会医療法人生長会　阪南市民病院",7,"○","○",null,null,null,null,null,null,"○","○",null,null,"○",null,"○",null,null,null,null,"○",null,1,null,null,null,"○"]
[352,"大阪府",2023,"社会医療法人生長会　府中病院",6,"○","○",null,null,null,null,null,null,null,null,null,null,"○",null,"○",null,null,"○","○",null,null,1,null,null,"○"]
[353,"大阪府",2023,"社会福祉法人恩賜財団　大阪府済生会吹田医療福祉センター　大阪府済生会吹田病院",1,null,null,null,null,null,null,null,null,null,"○",null,null,null,null,null,null,null,null,null,null,null,0]
[354,"大阪府",2023,"独立行政法人国立病院機構　大阪医療センター",11,"○","○",null,null,null,null,null,null,"○","○","○","○","○",null,"○","○",null,"○","○",null,null,2,null,null,"○",null,"○"]
[355,"山口県",2023,"社会福祉法人恩賜財団済生会支部　山口県済生会豊浦病院",3,null,null,null,null,null,null,null,null,null,null,"○",null,null,null,"○",null,null,null,null,"○",null,0]
[356,"香川県",2023,"公益社団法人香川県看護協会",2,null,null,null,null,null,null,null,null,null,null,null,null,null,null,"○","○",null,null,null,null,null,0]
[357,"宮崎県",2023,"宮崎大学医学部附属病院",12,"○","○","○",null,null,"○","○",null,"○","○",null,"○","○",null,"○",null,null,"○","○",null,null,1,null,"○"]
[358,"鹿児島県",2023,"独立行政法人国立病院機構　南九州病院",1,null,null,"○",null,null,null,null,null,null,null,null,null,null,null,null,null,null,null,null,null,null,0]
[359,"沖縄県",2023,"沖縄県立南部医療センター・こども医療センター",8,"○","○",null,"○",null,null,null,null,"○",null,null,null,"○",null,"○",null,null,"○","○",null,null,2,null,null,"○",null,null,"○"]
[360,"沖縄県",2023,"社会医療法人かりゆし会　ハートライフ病院",6,"○","○",null,null,null,null,null,null,null,null,null,null,"○",null,"○",null,"○",null,"○",null,null,0]
[361,"北海道",2023,"北海道公立大学法人札幌医科大学附属病院",10,"○","○","○","○",null,null,null,null,"○","○",null,null,"○","○","○",null,null,null,"○",null,null,1,null,null,null,null,null,"○"]
[362,"東京都",2023,"公立昭和病院",5,"○","○",null,null,null,null,null,null,null,null,null,null,"○",null,"○",null,null,null,null,"○",null,1,null,null,null,"○"]
[363,"神奈川県",2023,"社会医療法人財団石心会　川崎幸病院",4,"○","○",null,null,null,null,null,null,null,null,null,null,null,null,"○",null,null,null,"○"]
[364,"神奈川県",2023,"社会福祉法人恩賜財団済生会支部神奈川県済生会横浜市南部病院",2,null,null,null,null,null,null,null,null,null,null,null,null,"○",null,"○"]
[365,"神奈川県",2023,"平塚市民病院",6,"○","○",null,null,null,null,null,null,null,"○",null,null,"○",null,"○",null,null,null,null,"○",null,null,null,null,null,"○"]
[366,"新潟県",2023,"新潟県厚生農業協同組合連合会　村上総合病院",2,null,null,null,null,null,null,null,null,"○","○"]
[367,"石川県",2023,"加賀市医療センター",3,null,"○",null,null,null,null,null,null,null,null,null,null,"○",null,"○"]
[368,"石川県",2023,"独立行政法人国立病院機構　金沢医療センター",14,"○","○","○",null,null,"○","○",null,"○","○","○","○","○","○","○",null,null,"○","○",null,null,1,null,"○"]
[369,"静岡県",2023,"磐田市立総合病院",6,"○","○",null,null,null,null,null,null,null,null,null,null,"○",null,"○",null,null,"○","○",null,null,1,null,null,"○"]
[370,"愛知県",2023,"公立陶生病院",5,null,null,null,null,null,null,null,null,"○","○",null,null,"○",null,"○","○"]
[371,"大阪府",2023,"市立ひらかた病院",5,"○","○",null,null,null,null,null,null,null,null,null,null,"○",null,"○",null,null,null,null,"○",null,1,null,null,null,"○"]
[372,"広島県",2023,"社会医療法人千秋会　井野口病院",4,null,null,"○",null,null,null,null,"○",null,null,"○",null,null,null,"○",null,null,null,null,null,null,1,"○"]
[373,"福岡県",2023,"社会医療法人財団　池友会　福岡和白病院",13,"○","○",null,null,null,"○","○",null,"○","○","○","○","○",null,"○","○",null,"○","○",null,null,2,null,null,"○",null,"○"]